[Event "Early-Titled-Tuesday-Blitz-February-27-2024"]
[Site "Chess.com"]
[Date "2024.02.27"]
[Round "8"]
[White "Doublekk14"]
[Black "joksijoksi"]
[Result "1/2-1/2"]
[WhiteElo "2313"]
[BlackElo "2486"]
[TimeControl "180+1"]
[EndTime "9:26:51 PST"]
[Termination "Game drawn - insufficient material"]

1. c4 {[%clk 0:02:53.6]} 1... g6 {[%clk 0:02:57.5]} 2. Nc3 {[%clk 0:02:48.4]}
2... Bg7 {[%clk 0:02:45.3]} 3. Nf3 {[%clk 0:02:45.6]} 3... d6 {[%clk 0:02:45.1]}
4. e3 {[%clk 0:02:25]} 4... Nd7 {[%clk 0:02:45.2]} 5. Be2 {[%clk 0:02:04.1]}
5... e5 {[%clk 0:02:44.1]} 6. d4 {[%clk 0:02:03.4]} 6... Ne7 {[%clk 0:02:39.9]}
7. O-O {[%clk 0:02:03]} 7... O-O {[%clk 0:02:39.4]} 8. dxe5 {[%clk 0:02:03.1]}
8... dxe5 {[%clk 0:02:39.1]} 9. e4 {[%clk 0:02:02.5]} 9... c6 {[%clk 0:02:37]}
10. b3 {[%clk 0:02:01.7]} 10... Re8 {[%clk 0:02:31.9]} 11. Qd6 {[%clk
0:01:56.6]} 11... Nf8 {[%clk 0:02:23.1]} 12. Ba3 {[%clk 0:01:54.2]} 12... Bg4
{[%clk 0:02:16.7]} 13. Qxd8 {[%clk 0:01:44.5]} 13... Raxd8 {[%clk 0:02:15.6]}
14. Rad1 {[%clk 0:01:38.7]} 14... Rxd1 {[%clk 0:02:14]} 15. Rxd1 {[%clk
0:01:38.5]} 15... Ne6 {[%clk 0:02:11.6]} 16. Ne1 {[%clk 0:01:28.3]} 16... Bxe2
{[%clk 0:02:08.5]} 17. Nxe2 {[%clk 0:01:23.9]} 17... Nd4 {[%clk 0:02:08.7]} 18.
Nxd4 {[%clk 0:01:22.8]} 18... exd4 {[%clk 0:02:09.6]} 19. Bxe7 {[%clk
0:01:22.6]} 19... Rxe7 {[%clk 0:02:09.3]} 20. f3 {[%clk 0:01:20.3]} 20... c5
{[%clk 0:02:09.1]} 21. Nd3 {[%clk 0:01:20.4]} 21... b6 {[%clk 0:02:09.6]} 22.
Kf2 {[%clk 0:01:20]} 22... f5 {[%clk 0:02:09.8]} 23. exf5 {[%clk 0:01:18]} 23...
gxf5 {[%clk 0:02:09.5]} 24. Re1 {[%clk 0:01:18.2]} 24... Kf7 {[%clk 0:02:09.5]}
25. Rxe7+ {[%clk 0:01:17.7]} 25... Kxe7 {[%clk 0:02:10.4]} 26. f4 {[%clk
0:01:08.6]} 26... Kd6 {[%clk 0:02:08.2]} 27. g3 {[%clk 0:01:08.7]} 27... a6
{[%clk 0:02:07.9]} 28. a4 {[%clk 0:01:04.8]} 28... Kc6 {[%clk 0:02:03.6]} 29.
Ne1 {[%clk 0:01:00.5]} 29... b5 {[%clk 0:02:02.7]} 30. axb5+ {[%clk 0:01:00.5]}
30... axb5 {[%clk 0:02:03]} 31. Ke2 {[%clk 0:01:00.8]} 31... Kb6 {[%clk
0:01:57.9]} 32. Kd3 {[%clk 0:00:46.4]} 32... Ka5 {[%clk 0:01:57.9]} 33. Nc2
{[%clk 0:00:33.8]} 33... Bf8 {[%clk 0:01:54.8]} 34. cxb5 {[%clk 0:00:26.9]}
34... Kxb5 {[%clk 0:01:54.2]} 35. Nxd4+ {[%clk 0:00:27.4]} 35... cxd4 {[%clk
0:01:40.2]} 36. Kxd4 {[%clk 0:00:27.4]} 36... Bg7+ {[%clk 0:01:36.2]} 37. Kd5
{[%clk 0:00:27.4]} 37... Kb4 {[%clk 0:01:36]} 38. Ke6 {[%clk 0:00:27.5]} 38...
Kxb3 {[%clk 0:01:35.8]} 39. Kxf5 {[%clk 0:00:27.6]} 39... Kc4 {[%clk 0:01:35.3]}
40. g4 {[%clk 0:00:24.4]} 40... Kd5 {[%clk 0:01:34.9]} 41. h4 {[%clk 0:00:24.6]}
41... Kd6 {[%clk 0:01:32.3]} 42. g5 {[%clk 0:00:24.8]} 42... Ke7 {[%clk
0:01:31.2]} 43. h5 {[%clk 0:00:25.1]} 43... Kd6 {[%clk 0:01:29.8]} 44. h6 {[%clk
0:00:21.5]} 44... Bc3 {[%clk 0:01:30]} 45. g6 {[%clk 0:00:18.7]} 45... hxg6+
{[%clk 0:01:30.9]} 46. Kxg6 {[%clk 0:00:18.4]} 46... Ke7 {[%clk 0:01:31.2]} 47.
f5 {[%clk 0:00:11.9]} 47... Bf6 {[%clk 0:01:29.7]} 48. h7 {[%clk 0:00:12.1]}
48... Bd4 {[%clk 0:01:29.3]} 49. h8=Q {[%clk 0:00:10.8]} 49... Bxh8 {[%clk
0:01:29.6]} 50. f6+ {[%clk 0:00:11.1]} 50... Bxf6 {[%clk 0:01:29.8]} 1/2-1/2

[Event "Early-Titled-Tuesday-Blitz-February-27-2024"]
[Site "Chess.com"]
[Date "2024.02.27"]
[Round "8"]
[White "anasta10"]
[Black "Quattroporte300"]
[Result "0-1"]
[WhiteElo "2511"]
[BlackElo "2418"]
[TimeControl "180+1"]
[EndTime "9:26:53 PST"]
[Termination "Quattroporte300 won by resignation"]

1. Nf3 {[%clk 0:02:50.2]} 1... c5 {[%clk 0:03:00.1]} 2. c4 {[%clk 0:02:50.2]}
2... Nc6 {[%clk 0:03:00.4]} 3. Nc3 {[%clk 0:02:50.6]} 3... Nf6 {[%clk
0:02:59.9]} 4. g3 {[%clk 0:02:50.9]} 4... g6 {[%clk 0:02:57.5]} 5. Bg2 {[%clk
0:02:51.2]} 5... Bg7 {[%clk 0:02:58]} 6. O-O {[%clk 0:02:51.8]} 6... O-O {[%clk
0:02:58.4]} 7. e3 {[%clk 0:02:52.2]} 7... d6 {[%clk 0:02:57.2]} 8. d4 {[%clk
0:02:52.3]} 8... cxd4 {[%clk 0:02:56.6]} 9. exd4 {[%clk 0:02:53]} 9... Bg4
{[%clk 0:02:55.8]} 10. h3 {[%clk 0:02:50.4]} 10... Bxf3 {[%clk 0:02:53.8]} 11.
Bxf3 {[%clk 0:02:51.3]} 11... Rc8 {[%clk 0:02:53]} 12. b3 {[%clk 0:02:47.7]}
12... Nd7 {[%clk 0:02:35.9]} 13. Be3 {[%clk 0:02:35]} 13... e5 {[%clk
0:02:30.1]} 14. d5 {[%clk 0:02:23.9]} 14... Nd4 {[%clk 0:02:28.8]} 15. Bg2
{[%clk 0:02:20.4]} 15... f5 {[%clk 0:02:12.1]} 16. Qd2 {[%clk 0:02:13.1]} 16...
a6 {[%clk 0:02:09.2]} 17. Rac1 {[%clk 0:02:05.4]} 17... Qa5 {[%clk 0:02:05]} 18.
f4 {[%clk 0:01:46.7]} 18... b5 {[%clk 0:01:59.7]} 19. fxe5 {[%clk 0:01:44.3]}
19... dxe5 {[%clk 0:01:58.6]} 20. d6 {[%clk 0:01:31.9]} 20... bxc4 {[%clk
0:01:55.4]} 21. bxc4 {[%clk 0:00:43.8]} 21... Kh8 {[%clk 0:01:47.2]} 22. Bh6
{[%clk 0:00:15.9]} 22... Rxc4 {[%clk 0:01:44.3]} 23. Bxg7+ {[%clk 0:00:15.4]}
23... Kxg7 {[%clk 0:01:44.2]} 24. Qe3 {[%clk 0:00:06]} 24... Rfc8 {[%clk
0:01:40.2]} 25. Qg5 {[%clk 0:00:04.2]} 25... Qd8 {[%clk 0:01:30.3]} 26. Qe7+
{[%clk 0:00:02.2]} 26... Qxe7 {[%clk 0:01:29.1]} 27. dxe7 {[%clk 0:00:03.1]}
27... Rxc3 {[%clk 0:01:10.5]} 28. Rxc3 {[%clk 0:00:03.5]} 28... Ne2+ {[%clk
0:01:10.7]} 29. Kf2 {[%clk 0:00:04]} 29... Nxc3 {[%clk 0:01:11.3]} 30. Rc1
{[%clk 0:00:04.7]} 30... Kf7 {[%clk 0:01:05.6]} 31. Ke1 {[%clk 0:00:04.7]} 31...
Kxe7 {[%clk 0:00:50.8]} 32. Kd2 {[%clk 0:00:04.1]} 32... Ne4+ {[%clk 0:00:48.8]}
0-1

[Event "Early-Titled-Tuesday-Blitz-February-27-2024"]
[Site "Chess.com"]
[Date "2024.02.27"]
[Round "8"]
[White "124chess"]
[Black "JaloliddinIlkhomi"]
[Result "1-0"]
[WhiteElo "2563"]
[BlackElo "2757"]
[TimeControl "180+1"]
[EndTime "9:27:04 PST"]
[Termination "124chess won on time"]

1. d4 {[%clk 0:03:00.9]} 1... Nf6 {[%clk 0:02:59.4]} 2. Bf4 {[%clk 0:03:01.5]}
2... e6 {[%clk 0:02:59.7]} 3. e3 {[%clk 0:03:02.1]} 3... b6 {[%clk 0:02:59.2]}
4. Qf3 {[%clk 0:03:01.2]} 4... d5 {[%clk 0:02:58]} 5. Nc3 {[%clk 0:03:01.7]}
5... Bb7 {[%clk 0:02:58.5]} 6. O-O-O {[%clk 0:03:01.5]} 6... Bd6 {[%clk
0:02:56.9]} 7. g4 {[%clk 0:03:00.9]} 7... Ne4 {[%clk 0:02:51.9]} 8. Nge2 {[%clk
0:02:58.6]} 8... a6 {[%clk 0:02:34.2]} 9. h4 {[%clk 0:02:58.1]} 9... Nd7 {[%clk
0:02:34.5]} 10. Nxe4 {[%clk 0:02:56.8]} 10... dxe4 {[%clk 0:02:34.7]} 11. Qg3
{[%clk 0:02:57.7]} 11... Bxf4 {[%clk 0:02:33.9]} 12. Qxf4 {[%clk 0:02:58.3]}
12... Nf6 {[%clk 0:02:31.1]} 13. Bg2 {[%clk 0:02:56.4]} 13... Qd6 {[%clk
0:02:28.9]} 14. g5 {[%clk 0:02:53.4]} 14... Nd7 {[%clk 0:01:45.8]} 15. Qg4
{[%clk 0:02:41.7]} 15... h5 {[%clk 0:01:25.9]} 16. gxh6 {[%clk 0:02:41.5]} 16...
gxh6 {[%clk 0:01:26.8]} 17. Nc3 {[%clk 0:02:28.5]} 17... Nf6 {[%clk 0:01:21.1]}
18. Qh3 {[%clk 0:02:20.2]} 18... O-O-O {[%clk 0:01:18.5]} 19. Rhg1 {[%clk
0:02:17.1]} 19... b5 {[%clk 0:01:16.4]} 20. a3 {[%clk 0:02:15.3]} 20... Rhg8
{[%clk 0:01:13.5]} 21. Bh1 {[%clk 0:02:15.2]} 21... Bd5 {[%clk 0:01:05.8]} 22.
h5 {[%clk 0:02:02]} 22... Rg5 {[%clk 0:00:55.2]} 23. Rxg5 {[%clk 0:02:00]} 23...
hxg5 {[%clk 0:00:56.1]} 24. Rg1 {[%clk 0:02:00.5]} 24... Rg8 {[%clk 0:00:55.2]}
25. h6 {[%clk 0:01:59.2]} 25... Kb7 {[%clk 0:00:37.1]} 26. f3 {[%clk 0:01:15.9]}
26... exf3 {[%clk 0:00:29.6]} 27. Bxf3 {[%clk 0:01:16.8]} 27... g4 {[%clk
0:00:16.8]} 28. Bxg4 {[%clk 0:01:13]} 28... Qf8 {[%clk 0:00:11.7]} 29. h7 {[%clk
0:01:08.8]} 29... Rh8 {[%clk 0:00:10.1]} 30. Nxd5 {[%clk 0:01:01.6]} 30... Rxh7
{[%clk 0:00:02.6]} 31. Qf3 {[%clk 0:00:49.2]} 31... Nxd5 {[%clk 0:00:03.2]} 32.
Bxe6 {[%clk 0:00:48.6]} 32... Qh6 {[%clk 0:00:02.1]} 33. Bxd5+ {[%clk
0:00:47.9]} 1-0

[Event "Early-Titled-Tuesday-Blitz-February-27-2024"]
[Site "Chess.com"]
[Date "2024.02.27"]
[Round "8"]
[White "dpopadic"]
[Black "rcmz"]
[Result "1-0"]
[WhiteElo "2351"]
[BlackElo "2194"]
[TimeControl "180+1"]
[EndTime "9:27:04 PST"]
[Termination "dpopadic won by resignation"]

1. e4 {[%clk 0:02:59.4]} 1... e6 {[%clk 0:02:59.8]} 2. Nf3 {[%clk 0:02:58.5]}
2... a6 {[%clk 0:02:59.6]} 3. a4 {[%clk 0:02:50.3]} 3... b6 {[%clk 0:02:59.3]}
4. Nc3 {[%clk 0:02:47.7]} 4... Bb7 {[%clk 0:02:59.4]} 5. Bc4 {[%clk 0:02:47.5]}
5... c5 {[%clk 0:02:58.4]} 6. d3 {[%clk 0:02:47.1]} 6... Nc6 {[%clk 0:02:58.2]}
7. O-O {[%clk 0:02:46.8]} 7... Qc7 {[%clk 0:02:58]} 8. Re1 {[%clk 0:02:41.9]}
8... Nd4 {[%clk 0:02:57.3]} 9. Nxd4 {[%clk 0:02:39.9]} 9... cxd4 {[%clk
0:02:56.9]} 10. Ne2 {[%clk 0:02:40.3]} 10... e5 {[%clk 0:02:57.1]} 11. f4 {[%clk
0:02:38.6]} 11... d6 {[%clk 0:02:56.1]} 12. Kh1 {[%clk 0:02:36.5]} 12... Nf6
{[%clk 0:02:55.5]} 13. Ng1 {[%clk 0:02:35.9]} 13... Be7 {[%clk 0:02:51.1]} 14.
Qf3 {[%clk 0:02:34.5]} 14... Bc8 {[%clk 0:02:40.9]} 15. fxe5 {[%clk 0:02:33.4]}
15... dxe5 {[%clk 0:02:40.1]} 16. Qg3 {[%clk 0:02:32.6]} 16... g6 {[%clk
0:02:16.5]} 17. Nf3 {[%clk 0:02:30.2]} 17... Bd6 {[%clk 0:02:13.5]} 18. Bg5
{[%clk 0:02:23.2]} 18... Nh5 {[%clk 0:02:12.9]} 19. Qh4 {[%clk 0:02:22.8]} 19...
O-O {[%clk 0:01:53.4]} 20. Bh6 {[%clk 0:02:18.2]} 20... Re8 {[%clk 0:01:47.9]}
21. Ng5 {[%clk 0:02:13.5]} 21... Be6 {[%clk 0:01:38.2]} 22. Nxe6 {[%clk
0:02:04]} 22... fxe6 {[%clk 0:01:37.3]} 23. Rf1 {[%clk 0:02:00.3]} 23... Qe7
{[%clk 0:01:23.6]} 24. Qg4 {[%clk 0:01:49.5]} 24... Nf4 {[%clk 0:01:07.4]} 25.
g3 {[%clk 0:01:40.8]} 25... Nh5 {[%clk 0:01:04.4]} 26. Rf2 {[%clk 0:01:40.3]}
26... Ng7 {[%clk 0:00:57.7]} 27. Raf1 {[%clk 0:01:33.5]} 27... b5 {[%clk
0:00:53.9]} 28. axb5 {[%clk 0:01:31.5]} 28... axb5 {[%clk 0:00:53.4]} 29. Bxb5
{[%clk 0:01:31.1]} 29... Rf8 {[%clk 0:00:53.1]} 30. Rxf8+ {[%clk 0:01:29.7]}
30... Rxf8 {[%clk 0:00:51.6]} 31. Rxf8+ {[%clk 0:01:29.2]} 31... Kxf8 {[%clk
0:00:50.8]} 32. Bc4 {[%clk 0:01:27.1]} 32... Qf6 {[%clk 0:00:37.8]} 33. Kg2
{[%clk 0:01:23.4]} 33... Kf7 {[%clk 0:00:32.6]} 34. Bg5 {[%clk 0:01:20]} 34...
h5 {[%clk 0:00:31.9]} 35. Qh4 {[%clk 0:01:13.8]} 35... Nf5 {[%clk 0:00:30.5]}
36. Bxf6 {[%clk 0:01:11.4]} 36... Nxh4+ {[%clk 0:00:29]} 37. Bxh4 {[%clk
0:01:11.4]} 37... Bb4 {[%clk 0:00:24.2]} 38. Bg5 {[%clk 0:01:10.7]} 38... Ba5
{[%clk 0:00:20.8]} 39. Kf3 {[%clk 0:01:10.4]} 39... Bb4 {[%clk 0:00:19.8]} 40.
Ke2 {[%clk 0:01:10.3]} 40... Ba5 {[%clk 0:00:19.8]} 41. Bd2 {[%clk 0:01:09.1]}
41... Bb6 {[%clk 0:00:16.4]} 42. Bb4 {[%clk 0:01:08.7]} 42... Kf6 {[%clk
0:00:14.9]} 43. Bd6 {[%clk 0:01:06.5]} 43... g5 {[%clk 0:00:14.5]} 44. h3 {[%clk
0:01:05.4]} 44... h4 {[%clk 0:00:12.3]} 45. gxh4 {[%clk 0:01:03.5]} 45... gxh4
{[%clk 0:00:12.3]} 46. Kf3 {[%clk 0:01:03.5]} 46... Kg5 {[%clk 0:00:11.9]} 47.
Bxe5 {[%clk 0:01:02.7]} 1-0

[Event "Early-Titled-Tuesday-Blitz-February-27-2024"]
[Site "Chess.com"]
[Date "2024.02.27"]
[Round "8"]
[White "talaicito"]
[Black "NovakRatko"]
[Result "0-1"]
[WhiteElo "2287"]
[BlackElo "2481"]
[TimeControl "180+1"]
[EndTime "9:27:05 PST"]
[Termination "NovakRatko won on time"]

1. d4 {[%clk 0:03:00.9]} 1... d5 {[%clk 0:02:58.4]} 2. Nc3 {[%clk 0:03:01]} 2...
c5 {[%clk 0:02:58.7]} 3. Nf3 {[%clk 0:02:56.3]} 3... cxd4 {[%clk 0:02:57.3]} 4.
Nxd4 {[%clk 0:02:55.9]} 4... e5 {[%clk 0:02:57.1]} 5. Nb3 {[%clk 0:02:54.8]}
5... d4 {[%clk 0:02:57.2]} 6. Ne4 {[%clk 0:02:52.9]} 6... f5 {[%clk 0:02:57]} 7.
Ng3 {[%clk 0:02:49.9]} 7... Nc6 {[%clk 0:02:56]} 8. e3 {[%clk 0:02:49.4]} 8...
Bb4+ {[%clk 0:02:49.7]} 9. Bd2 {[%clk 0:02:45.1]} 9... dxe3 {[%clk 0:02:48.8]}
10. fxe3 {[%clk 0:02:42.4]} 10... Qb6 {[%clk 0:02:01.2]} 11. c3 {[%clk 0:01:58]}
11... Be7 {[%clk 0:01:59.3]} 12. Bd3 {[%clk 0:01:49.3]} 12... g6 {[%clk
0:01:44.3]} 13. Qe2 {[%clk 0:01:13.6]} 13... Be6 {[%clk 0:01:40.5]} 14. Bc4
{[%clk 0:00:58.4]} 14... Bxc4 {[%clk 0:01:31.4]} 15. Qxc4 {[%clk 0:00:59.3]}
15... O-O-O {[%clk 0:01:31.7]} 16. a4 {[%clk 0:00:38.3]} 16... Nf6 {[%clk
0:00:50.7]} 17. a5 {[%clk 0:00:36]} 17... Qc7 {[%clk 0:00:46.1]} 18. Nc5 {[%clk
0:00:23.7]} 18... Bxc5 {[%clk 0:00:39.5]} 19. Qxc5 {[%clk 0:00:23.6]} 19... Rd5
{[%clk 0:00:37.2]} 20. Qc4 {[%clk 0:00:20.6]} 20... Rhd8 {[%clk 0:00:33.6]} 21.
Nf1 {[%clk 0:00:17.2]} 21... Nxa5 {[%clk 0:00:26.7]} 22. Qa2 {[%clk 0:00:03.7]}
22... Nc4 {[%clk 0:00:18.5]} 0-1

[Event "Early-Titled-Tuesday-Blitz-February-27-2024"]
[Site "Chess.com"]
[Date "2024.02.27"]
[Round "8"]
[White "GelmanAlexander"]
[Black "phantom19801127"]
[Result "0-1"]
[WhiteElo "2711"]
[BlackElo "2547"]
[TimeControl "180+1"]
[EndTime "9:27:09 PST"]
[Termination "phantom19801127 won on time"]

1. d4 {[%clk 0:03:00.9]} 1... Nf6 {[%clk 0:02:53.2]} 2. Nc3 {[%clk 0:03:01]}
2... d5 {[%clk 0:02:52.5]} 3. Bf4 {[%clk 0:03:01.2]} 3... a6 {[%clk 0:02:51.3]}
4. e3 {[%clk 0:03:01.4]} 4... c5 {[%clk 0:02:51.1]} 5. Nf3 {[%clk 0:03:01.2]}
5... Nc6 {[%clk 0:02:51.2]} 6. Ne5 {[%clk 0:03:01.5]} 6... cxd4 {[%clk
0:02:50.2]} 7. exd4 {[%clk 0:03:01.8]} 7... h6 {[%clk 0:02:44.6]} 8. Qd3 {[%clk
0:02:15.9]} 8... Nb4 {[%clk 0:02:35.7]} 9. Qd2 {[%clk 0:02:15]} 9... Bf5 {[%clk
0:02:34.3]} 10. Rc1 {[%clk 0:02:04.3]} 10... Rc8 {[%clk 0:02:29.3]} 11. f3
{[%clk 0:02:02.8]} 11... e6 {[%clk 0:02:26.3]} 12. g4 {[%clk 0:02:02.8]} 12...
Bh7 {[%clk 0:02:25.7]} 13. h4 {[%clk 0:02:03]} 13... Nc6 {[%clk 0:02:20.9]} 14.
Ne2 {[%clk 0:01:39.7]} 14... Nd7 {[%clk 0:02:15.8]} 15. Nd3 {[%clk 0:01:27.5]}
15... Be7 {[%clk 0:02:10.9]} 16. Bg3 {[%clk 0:01:25.3]} 16... b5 {[%clk
0:01:52.6]} 17. c3 {[%clk 0:01:24.9]} 17... O-O {[%clk 0:01:47]} 18. Nef4 {[%clk
0:01:22.9]} 18... a5 {[%clk 0:01:35.8]} 19. Nh5 {[%clk 0:01:12.4]} 19... b4
{[%clk 0:01:34.1]} 20. Ndf4 {[%clk 0:01:12.3]} 20... bxc3 {[%clk 0:01:23.3]} 21.
bxc3 {[%clk 0:01:12.2]} 21... e5 {[%clk 0:01:01.5]} 22. Nxd5 {[%clk 0:00:49.3]}
22... exd4 {[%clk 0:01:00.9]} 23. cxd4 {[%clk 0:00:42.9]} 23... Ba3 {[%clk
0:01:00.2]} 24. Rd1 {[%clk 0:00:19.8]} 24... Nb4 {[%clk 0:00:59.3]} 25. Ne3
{[%clk 0:00:14.8]} 25... Nc2+ {[%clk 0:00:58.8]} 26. Kf2 {[%clk 0:00:12.1]}
26... Bb4 {[%clk 0:00:55.2]} 27. Qe2 {[%clk 0:00:12.5]} 27... Re8 {[%clk
0:00:53.6]} 28. Bf4 {[%clk 0:00:10.3]} 28... Nxe3 {[%clk 0:00:48]} 29. Bxe3
{[%clk 0:00:10.5]} 29... Rc2 {[%clk 0:00:47.9]} 30. d5 {[%clk 0:00:05.1]} 30...
Qe7 {[%clk 0:00:44.3]} 31. Rd3 {[%clk 0:00:01.9]} 31... Bxd3 {[%clk 0:00:41.9]}
0-1

[Event "Early-Titled-Tuesday-Blitz-February-27-2024"]
[Site "Chess.com"]
[Date "2024.02.27"]
[Round "8"]
[White "annamaja"]
[Black "Better_Chess_Faster"]
[Result "1-0"]
[WhiteElo "2420"]
[BlackElo "2160"]
[TimeControl "180+1"]
[EndTime "9:27:09 PST"]
[Termination "annamaja won by checkmate"]

1. e4 {[%clk 0:03:00.9]} 1... Nf6 {[%clk 0:02:59.3]} 2. e5 {[%clk 0:03:00.6]}
2... Nd5 {[%clk 0:02:59.8]} 3. d4 {[%clk 0:03:00.2]} 3... d6 {[%clk 0:03:00.3]}
4. c4 {[%clk 0:03:00]} 4... Nb6 {[%clk 0:03:00.3]} 5. exd6 {[%clk 0:02:58.7]}
5... cxd6 {[%clk 0:02:59.9]} 6. Bd3 {[%clk 0:02:57]} 6... g6 {[%clk 0:02:58.7]}
7. Nf3 {[%clk 0:02:53.7]} 7... Bg7 {[%clk 0:02:58.8]} 8. Be3 {[%clk 0:02:52]}
8... O-O {[%clk 0:02:58.2]} 9. Nbd2 {[%clk 0:02:51.1]} 9... Nc6 {[%clk
0:02:55.7]} 10. Rc1 {[%clk 0:02:44.7]} 10... e5 {[%clk 0:02:54.5]} 11. d5 {[%clk
0:02:41.5]} 11... Nd4 {[%clk 0:02:53.2]} 12. Bxd4 {[%clk 0:02:37.5]} 12... exd4
{[%clk 0:02:52.8]} 13. O-O {[%clk 0:02:38.1]} 13... Nd7 {[%clk 0:02:46.2]} 14.
Nb3 {[%clk 0:02:31.6]} 14... Ne5 {[%clk 0:02:41.1]} 15. Nfxd4 {[%clk 0:02:25.7]}
15... Bg4 {[%clk 0:02:34.6]} 16. Be2 {[%clk 0:02:22.6]} 16... Bxe2 {[%clk
0:02:26.1]} 17. Qxe2 {[%clk 0:02:23.5]} 17... Re8 {[%clk 0:02:24.4]} 18. Rfe1
{[%clk 0:02:11.6]} 18... Rc8 {[%clk 0:02:19]} 19. f4 {[%clk 0:01:47.8]} 19...
Nd7 {[%clk 0:02:13.6]} 20. Qd3 {[%clk 0:01:30.8]} 20... a6 {[%clk 0:02:04.9]}
21. Kf2 {[%clk 0:01:22.1]} 21... Qh4+ {[%clk 0:02:00.9]} 22. Qg3 {[%clk
0:01:18.4]} 22... Qf6 {[%clk 0:01:58.8]} 23. Kg1 {[%clk 0:01:05.2]} 23... h5
{[%clk 0:01:50.6]} 24. Rxe8+ {[%clk 0:00:55.4]} 24... Rxe8 {[%clk 0:01:49.9]}
25. Qf2 {[%clk 0:00:55.5]} 25... Qd8 {[%clk 0:01:43.4]} 26. Re1 {[%clk
0:00:52.1]} 26... Rxe1+ {[%clk 0:01:31.6]} 27. Qxe1 {[%clk 0:00:53]} 27... Qb6
{[%clk 0:01:30.3]} 28. Qe8+ {[%clk 0:00:47.8]} 28... Nf8 {[%clk 0:01:29.6]} 29.
Qe3 {[%clk 0:00:48.5]} 29... Nd7 {[%clk 0:01:22]} 30. h3 {[%clk 0:00:41]} 30...
h4 {[%clk 0:01:20.2]} 31. Kf1 {[%clk 0:00:38.5]} 31... a5 {[%clk 0:01:19.3]} 32.
Qe8+ {[%clk 0:00:28]} 32... Nf8 {[%clk 0:01:18.7]} 33. Nf3 {[%clk 0:00:27.3]}
33... a4 {[%clk 0:01:11.3]} 34. Qxa4 {[%clk 0:00:25.1]} 34... Bxb2 {[%clk
0:01:07.9]} 35. Qe8 {[%clk 0:00:23.9]} 35... Qb4 {[%clk 0:01:02.1]} 36. Nbd2
{[%clk 0:00:20.2]} 36... Bc3 {[%clk 0:01:00.8]} 37. Ke2 {[%clk 0:00:19.9]} 37...
Kg7 {[%clk 0:00:53.9]} 38. Ng5 {[%clk 0:00:16.7]} 38... Bxd2 {[%clk 0:00:39.3]}
39. Qxf7+ {[%clk 0:00:17]} 39... Kh6 {[%clk 0:00:36]} 40. Qxf8+ {[%clk
0:00:17.9]} 40... Kh5 {[%clk 0:00:33.1]} 41. Qh8# {[%clk 0:00:18.8]} 1-0

[Event "Early-Titled-Tuesday-Blitz-February-27-2024"]
[Site "Chess.com"]
[Date "2024.02.27"]
[Round "8"]
[White "PavelShkapenko"]
[Black "SlavenPastar"]
[Result "0-1"]
[WhiteElo "2744"]
[BlackElo "2635"]
[TimeControl "180+1"]
[EndTime "9:27:14 PST"]
[Termination "SlavenPastar won by resignation"]

1. e4 {[%clk 0:03:00.9]} 1... b6 {[%clk 0:02:59.4]} 2. d4 {[%clk 0:03:00.3]}
2... Bb7 {[%clk 0:03:00]} 3. Bd3 {[%clk 0:03:00.7]} 3... Nf6 {[%clk 0:03:00.6]}
4. Qe2 {[%clk 0:02:59.1]} 4... e6 {[%clk 0:03:01.2]} 5. Nf3 {[%clk 0:02:59]}
5... d5 {[%clk 0:03:01.6]} 6. e5 {[%clk 0:02:57.4]} 6... Ne4 {[%clk 0:03:01.8]}
7. Nbd2 {[%clk 0:02:58]} 7... Nxd2 {[%clk 0:03:02.4]} 8. Bxd2 {[%clk 0:02:58.9]}
8... c5 {[%clk 0:03:02.5]} 9. c3 {[%clk 0:02:59.6]} 9... a5 {[%clk 0:03:01.3]}
10. O-O {[%clk 0:02:46.3]} 10... Be7 {[%clk 0:02:58.5]} 11. Rfe1 {[%clk
0:02:38.2]} 11... Ba6 {[%clk 0:02:58.4]} 12. c4 {[%clk 0:02:38.5]} 12... cxd4
{[%clk 0:02:53.5]} 13. cxd5 {[%clk 0:01:38.1]} 13... Qxd5 {[%clk 0:02:37.8]} 14.
Be4 {[%clk 0:01:25]} 14... Bxe2 {[%clk 0:02:37.2]} 15. Bxd5 {[%clk 0:01:25.2]}
15... Bxf3 {[%clk 0:02:27.9]} 16. Bxf3 {[%clk 0:01:24]} 16... Ra7 {[%clk
0:02:27.6]} 17. Re4 {[%clk 0:01:11.8]} 17... Nc6 {[%clk 0:02:07.8]} 18. Rc1
{[%clk 0:01:04.2]} 18... Bc5 {[%clk 0:02:07.4]} 19. Be2 {[%clk 0:00:45]} 19...
Ke7 {[%clk 0:01:54.6]} 20. Bb5 {[%clk 0:00:44.7]} 20... Rc8 {[%clk 0:01:36.6]}
21. Bxc6 {[%clk 0:00:28.3]} 21... Rxc6 {[%clk 0:01:35.7]} 22. Rxd4 {[%clk
0:00:28.9]} 22... Bxd4 {[%clk 0:01:35.5]} 23. Rxc6 {[%clk 0:00:28.6]} 23... Bc5
{[%clk 0:01:01.6]} 24. Rc8 {[%clk 0:00:28.6]} 24... Rd7 {[%clk 0:01:00.8]} 25.
Rxc5 {[%clk 0:00:06.1]} 25... bxc5 {[%clk 0:00:56]} 26. Be1 {[%clk 0:00:06.6]}
26... Rd1 {[%clk 0:00:54.3]} 27. Kf1 {[%clk 0:00:07.1]} 27... a4 {[%clk
0:00:52.6]} 28. b3 {[%clk 0:00:05.5]} 28... axb3 {[%clk 0:00:51.2]} 29. axb3
{[%clk 0:00:06.4]} 29... Rb1 {[%clk 0:00:51.1]} 30. b4 {[%clk 0:00:06.9]} 30...
cxb4 {[%clk 0:00:50.2]} 31. Ke2 {[%clk 0:00:07.5]} 31... b3 {[%clk 0:00:45.1]}
32. Bb4+ {[%clk 0:00:07.3]} 32... Kd7 {[%clk 0:00:43.9]} 33. Kd2 {[%clk
0:00:07.9]} 33... Rb2+ {[%clk 0:00:41.2]} 34. Kc3 {[%clk 0:00:08]} 34... Rxf2
{[%clk 0:00:39.9]} 35. Kxb3 {[%clk 0:00:08.6]} 35... Rxg2 {[%clk 0:00:39.7]} 36.
Bf8 {[%clk 0:00:08.6]} 36... Ke8 {[%clk 0:00:37.9]} 0-1